fUST/lending_fUST_20250928
["ID","MTS","AMOUNT","RATE_DAILY","PERIOD"]
[388177547,1759032639778,-638.41342746,0.0003406,2]
[388177549,1759032639791,-786.09,0.00034078,3]
[388177550,1759032639799,-8000.0,0.00034079,6]
[388177552,1759032639808,-12000.0,0.00034088,6]
[388177553,1759032639817,-138731.142568,0.0003409,2]
[388177554,1759032639826,-2089.10826888,0.0003409,2]
[388177555,1759032639835,-168.0,0.00034097,2]
[388177556,1759032639844,-183616.88047,0.000341,5]
[388177557,1759032639853,-1438.66,0.000341,14]
[388177558,1759032639862,-34682.785642,0.0003415,2]
[388177559,1759032639871,-522.27706722,0.0003415,2]
[388177560,1759032639880,-150.0,0.0003416,2]
[388177561,1759032639889,-300.0,0.0003416,2]
[388177562,1759032639898,-450.0,0.0003416,2]
[388177563,1759032639907,-600.0,0.0003416,2]
[388177564,1759032639915,-160.15398374,0.0003416,2]
[388177565,1759032639925,-1000.0,0.0003416,2]
[388177566,1759032639935,-1000.0,0.0003416,2]
[388177567,1759032639944,-1000.0,0.0003416,2]
[388177568,1759032639953,-1000.0,0.0003416,2]
[388177569,1759032639963,-1000.0,0.0003416,2]
[388177570,1759032639972,-1000.0,0.0003416,2]
[388177571,1759032639981,-1000.0,0.0003416,2]
[388177572,1759032639990,-1000.0,0.0003416,2]
[388177573,1759032639999,-1000.0,0.0003416,2]
[388177574,1759032640009,-1000.0,0.0003416,2]
[388177575,1759032640018,-506.83212123,0.0003416,2]
[388177576,1759032640027,-506.70262084,0.00034167,5]
[388177577,1759032640036,-1000.0,0.00034169,2]
[388177578,1759032640046,-1000.0,0.0003417,2]
[388177579,1759032640055,-1000.0,0.0003417,2]
[388177580,1759032640064,-1000.0,0.0003417,2]
[388177581,1759032640072,-1000.0,0.0003417,2]
[388177582,1759032640081,-1000.0,0.0003417,2]
[388177583,1759032640090,-525.3258164,0.0003417,2]
[388177584,1759032640099,-168.0,0.00034176,2]
[388177585,1759032640108,-350.24035506,0.00034192,30]
[388177586,1759032640122,-261.57275479,0.0003422,2]
[388177587,1759032640132,-483.03594874,0.00034246,120]
[388177588,1759032640142,-410.84075698,0.00034246,7]
[388177590,1759032640151,-160.0,0.00034252,2]
[388177592,1759032640160,-160.0,0.00034252,2]
[388177594,1759032640170,-189.35579204,0.00034253,2]
[388177596,1759032640179,-151.0,0.00034273,7]
[388177598,1759032640188,-151.0,0.00034273,7]
[388177600,1759032640197,-151.0,0.00034273,7]
[388177602,1759032640207,-151.0,0.00034273,7]
[388177604,1759032640216,-500.0,0.00034273,7]
[388177606,1759032640225,-608.27281064,0.00034273,7]
[388177608,1759032640235,-500.0,0.00034273,7]
[388177610,1759032640243,-500.0,0.00034273,7]
[388177612,1759032640253,-500.0,0.00034273,7]
[388177614,1759032640262,-1500.0,0.00034296,5]
[388177615,1759032640271,-260.0,0.00034323,2]
[388177616,1759032640281,-160.0,0.00034345,2]
[388177617,1759032640290,-350.24035506,0.00034356,30]
[388177618,1759032640302,-174.126,0.00034367,5]
[388177619,1759032640311,-209.304,0.00034367,5]
[388177620,1759032640320,-189.35579204,0.00034367,7]
[388177621,1759032640329,-250.0,0.00034367,7]
[388177622,1759032640339,-250.0,0.00034367,7]
[388177623,1759032640347,-250.0,0.00034367,7]
[388177624,1759032640357,-250.0,0.00034367,7]
[388177625,1759032640366,-250.0,0.00034367,7]
[388177626,1759032640375,-250.0,0.00034367,7]
[388177627,1759032640384,-250.0,0.00034367,7]
[388177628,1759032640393,-250.0,0.00034367,7]
[388177629,1759032640402,-250.0,0.00034367,7]
[388177630,1759032640412,-250.0,0.00034367,7]
[388177631,1759032640421,-250.0,0.00034367,7]
[388177632,1759032640431,-250.0,0.00034367,7]
[388177633,1759032640441,-250.0,0.00034367,7]
[388177634,1759032640450,-250.0,0.00034367,7]
[388177635,1759032640459,-390.10339141,0.00034367,7]
[388177636,1759032640469,-642.7,0.00034395,16]
[388177637,1759032640478,-151.0,0.000344,19]
[388177638,1759032640488,-638.41342744,0.00034424,2]
[388177639,1759032640498,-168.0,0.00034445,2]
[388177640,1759032640507,-600.0,0.00034454,2]
[388177641,1759032640517,-151.0,0.00034496,30]
[388177642,1759032640526,-6825.43711839,0.000345,24]
[388177643,1759032640536,-350.24035506,0.00034521,30]
[388177644,1759032640546,-151.0,0.00034547,7]
[388177645,1759032640555,-151.0,0.00034547,7]
[388177646,1759032640564,-271.97284881,0.00034547,7]
[388177647,1759032640574,-266.24192355,0.00034547,7]
[388177648,1759032640583,-454.97388018,0.00034547,7]
[388177649,1759032640592,-155.85076061,0.00034547,7]
[388177650,1759032640602,-500.0,0.00034547,7]
[388177652,1759032640612,-500.0,0.00034547,7]
[388177653,1759032640622,-1244.15089348,0.00034563,5]
[388177654,1759032640631,-168.0,0.0003458,2]
[388177655,1759032640640,-151.0,0.000346,18]
[388177656,1759032640649,-168.0,0.00034625,2]
[388177657,1759032640658,-233.82138094,0.00034648,120]
[388177658,1759032640668,-350.24035506,0.00034685,30]
[388177659,1759032640677,-560.0,0.00034694,2]
[388177660,1759032640687,-151.0,0.000347,19]
[388177661,1759032640697,-168.0,0.00034771,2]
[388177662,1759032640706,-638.41342744,0.00034788,2]
[388177663,1759032640716,-151.0,0.000348,14]
[388177664,1759032640725,-151.0,0.000348,10]
[388177665,1759032640734,-800.0,0.00034807,2]
[388177666,1759032640743,-600.0,0.00034813,2]
[388177667,1759032640752,-151.0,0.00034821,7]
[388177668,1759032640761,-151.0,0.00034821,7]
[388177669,1759032640770,-601.46340903,0.00034821,7]
[388177670,1759032640781,-500.0,0.00034821,7]
[388177671,1759032640792,-168.288335,0.0003483,2]
[388177672,1759032640802,-168.0,0.0003484,2]
[388177673,1759032640812,-2000.0,0.00034844,5]
[388177674,1759032640822,-350.24035506,0.00034849,30]
[388177675,1759032640831,-369.0,0.00034859,2]
[388177676,1759032640840,-1409.98353602,0.00034889,2]
[388177677,1759032640851,-173.16,0.0003489,120]
[388177678,1759032640863,-151.0,0.000349,11]
[388177679,1759032640873,-500.0,0.00034903,7]
[388177680,1759032640893,-34682.785642,0.00034933,2]
[388177681,1759032640903,-522.27706722,0.00034933,2]
[388177682,1759032640914,-150.0,0.00034937,2]
[388177683,1759032640923,-642.7,0.00034943,17]
[388177684,1759032640932,-872.71639607,0.00034955,2]
[388177685,1759032640942,-983.004,0.00034962,2]
[388177686,1759032640951,-635.0,0.00034962,2]
[388177687,1759032640960,-2161.0,0.00034962,2]
[388177688,1759032640969,-168.288335,0.00034976,14]
[388177689,1759032640978,-1044.55413444,0.0003499,2]
[388177690,1759032640988,-136532.07076074,0.00035,10]
[388177691,1759032640997,-100000.0,0.00035,24]
[388177692,1759032641006,-500.0,0.00035,13]
[388177693,1759032641016,-501.09633017,0.00035,13]
[388177694,1759032641025,-350.24035506,0.00035014,30]
[388177695,1759032641034,-233.82138094,0.00035077,2]
[388177696,1759032641044,-203.0,0.0003508,39]
[388177697,1759032641053,-155.892825,0.00035095,7]
[388177698,1759032641062,-245.0,0.00035095,7]
[388177699,1759032641071,-256.67978749,0.00035095,7]
[388177700,1759032641081,-151.0,0.00035097,30]
[388177701,1759032641090,-168.0,0.00035142,2]
[388177702,1759032641100,-168.0,0.0003515,2]
[388177703,1759032641109,-638.41342744,0.00035152,2]
[388177704,1759032641119,-600.0,0.00035172,2]
[388177705,1759032641128,-350.24035506,0.00035178,30]
[388177706,1759032641137,-151.0,0.000352,13]
[388177707,1759032641146,-168.0,0.00035215,7]
[388177708,1759032641154,-261.57275479,0.00035246,2]
[388177709,1759032641164,-819.75241002,0.00035269,30]
[388177710,1759032641172,-168.0,0.00035336,2]
[388177711,1759032641182,-350.24035506,0.00035342,30]
[388177712,1759032641191,-296.5529887,0.00035342,30]
[388177713,1759032641200,-168.0,0.0003535,2]
[388177714,1759032641209,-1048.1,0.0003536,3]
[388177715,1759032641218,-524.04,0.0003536,3]
[388177716,1759032641227,-2500.0,0.00035392,5]
[388177717,1759032641236,-1438.66,0.000354,14]
[388177718,1759032641245,-500.0,0.00035408,30]
[388177719,1759032641254,-1044.55413444,0.0003549,3]
[388177720,1759032641263,-642.7,0.00035491,18]
[388177721,1759032641272,-100000.0,0.000355,24]
[388177722,1759032641281,-350.24035506,0.00035507,30]
[388177723,1759032641290,-638.41342744,0.00035516,2]
[388177724,1759032641299,-600.0,0.00035531,2]
[388177725,1759032641309,-168.0,0.00035556,2]
[388177726,1759032641318,-1044.55413444,0.0003559,3]
[388177727,1759032641327,-98399.55394932,0.000356,4]
[388177728,1759032641336,-151.0,0.000356,13]
[388177729,1759032641345,-3133.66240332,0.00035606,3]
[388177730,1759032641354,-200.0,0.00035615,10]
[388177731,1759032641363,-165.60004426,0.00035615,10]
[388177732,1759032641372,-150000.0,0.00035616,4]
[388177733,1759032641381,-881.44,0.00035616,9]
[388177734,1759032641390,-480.0,0.00035616,9]
[388177735,1759032641399,-480.0,0.00035616,9]
[388177737,1759032641408,-480.0,0.00035616,9]
[388177739,1759032641417,-480.0,0.00035616,9]
[388177741,1759032641426,-480.0,0.00035616,9]
[388177743,1759032641435,-480.0,0.00035616,9]
[388177745,1759032641444,-480.0,0.00035616,9]
[388177747,1759032641452,-480.0,0.00035616,9]
[388177749,1759032641461,-480.0,0.00035616,9]
[388177751,1759032641470,-480.0,0.00035616,9]
[388177753,1759032641479,-480.0,0.00035616,9]
[388177755,1759032641488,-480.0,0.00035616,9]
[388177757,1759032641497,-480.0,0.00035616,9]
[388177759,1759032641507,-480.26658388,0.00035616,9]
[388177761,1759032641516,-480.0,0.00035616,9]
[388177763,1759032641525,-782.92,0.00035616,9]
[388177765,1759032641534,-480.0,0.00035616,9]
[388177767,1759032641543,-480.0,0.00035616,9]
[388177769,1759032641552,-500.0,0.00035616,9]
[388177771,1759032641561,-500.0,0.00035616,9]
[388177773,1759032641570,-500.0,0.00035616,9]
[388177775,1759032641579,-555.45196873,0.00035616,9]
[388177777,1759032641588,-480.0,0.00035616,9]
[388177779,1759032641597,-480.0,0.00035616,9]
[388177781,1759032641607,-586.9,0.00035616,9]
[388177783,1759032641618,-992.79,0.00035616,9]
[388177786,1759032641628,-951.42,0.00035616,9]
[388177788,1759032641637,-611.12,0.00035616,9]
[388177789,1759032641647,-391.7573799,0.00035616,9]
[388177791,1759032641656,-480.0,0.00035616,9]
[388177793,1759032641665,-597.94514414,0.00035616,9]
[388177796,1759032641675,-480.0,0.00035616,9]
[388177798,1759032641685,-480.0,0.00035616,9]
[388177800,1759032641693,-480.62619393,0.00035616,9]
[388177802,1759032641703,-593.52,0.00035616,9]
[388177804,1759032641712,-480.0,0.00035616,9]
[388177805,1759032641723,-676.57,0.00035616,9]
[388177808,1759032641733,-480.0,0.00035616,9]
[388177809,1759032641743,-510.06,0.00035616,9]
[388177812,1759032641753,-480.0,0.00035616,9]
[388177814,1759032641766,-480.0,0.00035616,9]
[388177816,1759032641775,-480.0,0.00035616,9]
[388177818,1759032641785,-480.0,0.00035616,9]
[388177820,1759032641800,-480.0,0.00035616,9]
[388177822,1759032641809,-480.0,0.00035616,9]
[388177824,1759032641818,-480.28597715,0.00035616,9]
[388177826,1759032641827,-539.4,0.00035616,9]
[388177828,1759032641836,-480.0,0.00035616,9]
[388177830,1759032641845,-480.31317012,0.00035616,9]
[388177832,1759032641854,-480.47508503,0.00035616,9]
[388177834,1759032641863,-481.37440666,0.00035616,9]
[388177836,1759032641872,-1111.76,0.00035616,9]
[388177838,1759032641881,-480.0,0.00035616,9]
[388177840,1759032641889,-480.29971497,0.00035616,9]
[388177842,1759032641898,-480.0,0.00035616,9]
[388177844,1759032641908,-480.0,0.00035616,9]
[388177846,1759032641916,-480.0,0.00035616,9]
[388177848,1759032641926,-481.06224632,0.00035616,9]
[388177850,1759032641934,-480.0,0.00035616,9]
[388177852,1759032641943,-480.0,0.00035616,9]
[388177853,1759032641952,-480.0,0.00035616,9]
[388177855,1759032641961,-480.0,0.00035616,9]
[388177857,1759032641970,-480.0,0.00035616,9]
[388177859,1759032641979,-480.0,0.00035616,9]
[388177861,1759032641988,-604.00195036,0.00035616,9]
[388177863,1759032641996,-480.0,0.00035616,9]
[388177865,1759032642006,-480.0,0.00035616,9]
[388177867,1759032642014,-481.1951356,0.00035616,9]
[388177869,1759032642023,-480.0,0.00035616,9]
[388177871,1759032642032,-480.0,0.00035616,9]
[388177873,1759032642041,-480.0,0.00035616,9]
[388177875,1759032642050,-480.0,0.00035616,9]
[388177877,1759032642059,-480.0,0.00035616,9]
[388177879,1759032642068,-480.0,0.00035616,9]
[388177881,1759032642077,-480.0,0.00035616,9]
[388177883,1759032642086,-480.0,0.00035616,9]
[388177885,1759032642096,-480.0,0.00035616,9]
[388177887,1759032642105,-500.0,0.00035616,2]
[388177889,1759032642114,-504.31606772,0.00035616,2]
[388177891,1759032642122,-480.0,0.00035616,9]
[388177893,1759032642131,-480.0,0.00035616,9]
[388177895,1759032642141,-822.61,0.00035616,9]
[388177897,1759032642149,-480.0,0.00035616,9]
[388177899,1759032642158,-480.0,0.00035616,9]
[388177901,1759032642167,-480.0,0.00035616,9]
[388177903,1759032642176,-670.17,0.00035616,9]
[388177905,1759032642185,-480.0,0.00035616,9]
[388177907,1759032642194,-480.0,0.00035616,9]
[388177909,1759032642204,-480.0,0.00035616,9]
[388177911,1759032642213,-524.7,0.00035616,9]
[388177913,1759032642223,-500.64207955,0.00035616,9]
[388177915,1759032642233,-480.0,0.00035616,9]
[388177917,1759032642242,-480.0,0.00035616,9]
[388177919,1759032642250,-649.82,0.00035616,9]
[388177921,1759032642259,-480.0,0.00035616,9]
[388177923,1759032642268,-480.0,0.00035616,9]
[388177925,1759032642277,-480.0,0.00035616,9]
[388177927,1759032642286,-480.0,0.00035616,9]
[388177929,1759032642294,-835.68,0.00035616,9]
[388177931,1759032642303,-480.0,0.00035616,9]
[388177933,1759032642312,-480.0,0.00035616,9]
[388177935,1759032642321,-480.0,0.00035616,9]
[388177937,1759032642330,-874.19,0.00035616,9]
[388177939,1759032642340,-480.94910808,0.00035616,9]
[388177941,1759032642349,-1058.1,0.00035616,9]
[388177943,1759032642358,-480.0,0.00035616,9]
[388177945,1759032642367,-480.0,0.00035616,9]
[388177948,1759032642376,-480.0,0.00035616,9]
[388177950,1759032642385,-480.0,0.00035616,9]
[388177952,1759032642394,-480.0,0.00035616,9]
[388177954,1759032642403,-480.66597346,0.00035616,9]
[388177956,1759032642412,-480.0,0.00035616,9]
[388177958,1759032642421,-780.84,0.00035616,9]
[388177960,1759032642430,-480.0,0.00035616,9]
[388177962,1759032642439,-480.0,0.00035616,9]
[388177964,1759032642448,-1000.0,0.00035616,9]
[388177965,1759032642457,-480.0,0.00035616,9]
[388177967,1759032642466,-1028.73,0.00035616,9]
[388177969,1759032642475,-480.0,0.00035616,9]
[388177972,1759032642484,-480.0,0.00035616,9]
[388177974,1759032642493,-480.0,0.00035616,9]
[388177976,1759032642502,-480.0,0.00035616,9]
[388177978,1759032642511,-480.0,0.00035616,9]
[388177979,1759032642520,-480.0,0.00035616,9]
[388177981,1759032642529,-480.0,0.00035616,9]
[388177984,1759032642538,-480.0,0.00035616,9]
[388177985,1759032642547,-513.38,0.00035616,9]
[388177988,1759032642557,-677.74,0.00035616,9]
[388177990,1759032642566,-480.0,0.00035616,9]
[388177992,1759032642576,-480.0,0.00035616,9]
[388177994,1759032642584,-480.73335312,0.00035616,9]
[388177996,1759032642593,-480.0,0.00035616,9]
[388177998,1759032642602,-480.0,0.00035616,9]
[388178000,1759032642611,-480.97999483,0.00035616,9]
[388178002,1759032642620,-480.0,0.00035616,9]
[388178004,1759032642629,-480.99304295,0.00035616,9]
[388178006,1759032642638,-480.0,0.00035616,9]
[388178008,1759032642647,-480.0,0.00035616,9]
[388178010,1759032642656,-480.0,0.00035616,9]
[388178012,1759032642665,-480.0,0.00035616,9]
[388178014,1759032642675,-480.0,0.00035616,9]
[388178016,1759032642684,-469.23323398,0.00035616,9]
[388178018,1759032642693,-480.0,0.00035616,9]
[388178020,1759032642702,-480.0,0.00035616,9]
[388178022,1759032642712,-969.67,0.00035616,9]
[388178024,1759032642721,-480.0,0.00035616,9]
[388178026,1759032642731,-1094.06,0.00035616,9]
[388178027,1759032642742,-712.34,0.00035616,9]
[388178029,1759032642752,-480.0,0.00035616,9]
[388178032,1759032642762,-480.0,0.00035616,2]
[388178034,1759032642771,-480.0,0.00035616,9]
[388178035,1759032642780,-480.0,0.00035616,9]
[388178037,1759032642790,-480.0,0.00035616,9]
[388178040,1759032642803,-480.0,0.00035616,9]
[388178042,1759032642814,-871.48,0.00035616,9]
[388178044,1759032642823,-480.0,0.00035616,9]
[388178045,1759032642833,-480.0,0.00035616,9]
[388178048,1759032642843,-480.0,0.00035616,9]
[388178050,1759032642853,-480.0,0.00035616,9]
[388178052,1759032642862,-659.79,0.00035616,9]
[388178053,1759032642876,-480.0,0.00035616,9]
[388178055,1759032642885,-480.0,0.00035616,9]
[388178057,1759032642894,-938.01,0.00035616,9]
[388178059,1759032642903,-868.8,0.00035616,9]
[388178061,1759032642913,-480.0,0.00035616,9]
[388178064,1759032642924,-456.41322415,0.00035616,9]
[388178066,1759032642934,-677.52,0.00035616,9]
[388178067,1759032642945,-480.0,0.00035616,9]
[388178070,1759032642956,-564.77598972,0.00035616,9]
[388178071,1759032642966,-480.0,0.00035616,9]
[388178073,1759032642975,-480.0,0.00035616,9]
[388178075,1759032642984,-480.0,0.00035616,9]
[388178077,1759032642995,-480.0,0.00035616,9]
[388178080,1759032643004,-480.0,0.00035616,9]
[388178082,1759032643017,-588.18,0.00035616,9]
[388178084,1759032643027,-480.0,0.00035616,9]
[388178085,1759032643037,-480.0,0.00035616,9]
[388178088,1759032643047,-729.12,0.00035616,9]
[388178090,1759032643057,-535.42,0.00035616,9]
[388178092,1759032643066,-480.0,0.00035616,9]
[388178094,1759032643074,-480.0,0.00035616,9]
[388178096,1759032643083,-480.0,0.00035616,9]
[388178098,1759032643092,-480.0,0.00035616,9]
[388178117,1759032643258,-550.1,0.00035616,9]
[388178119,1759032643268,-480.90341427,0.00035616,9]
[388178121,1759032643277,-1328.63,0.00035616,9]
[388178123,1759032643286,-480.80255179,0.00035616,9]
[388178125,1759032643295,-1225.08,0.00035616,9]
[388178127,1759032643303,-480.0,0.00035616,9]
[388178129,1759032643314,-480.0,0.00035616,9]
[388178131,1759032643322,-480.0,0.00035616,9]
[388178133,1759032643331,-480.0,0.00035616,9]
[388178135,1759032643340,-480.0,0.00035616,9]
[388178137,1759032643350,-480.0,0.00035616,9]
[388178139,1759032643359,-608.23,0.00035616,9]
[388178141,1759032643369,-480.0,0.00035616,9]
[388178143,1759032643378,-1051.22,0.00035616,9]
[388178145,1759032643387,-795.52,0.00035616,9]
[388178147,1759032643396,-935.48,0.00035616,9]
[388178149,1759032643405,-3680.23,0.00035616,9]
[388178151,1759032643414,-480.0,0.00035616,9]
[388178153,1759032643423,-976.53,0.00035616,9]
[388178155,1759032643433,-480.0,0.00035616,9]
[388178157,1759032643442,-568.86,0.00035616,9]
[388178159,1759032643451,-525.01,0.00035616,9]
[388178161,1759032643460,-480.0,0.00035616,9]
[388178163,1759032643469,-480.0,0.00035616,9]
[388178165,1759032643479,-633.96,0.00035616,9]
[388178167,1759032643489,-480.0,0.00035616,9]
[388178169,1759032643498,-480.0,0.00035616,9]
[388178171,1759032643507,-4831.56,0.00035616,9]
[388178173,1759032643516,-237.64819244,0.00035616,9]
[388178175,1759032643525,-480.0,0.00035616,9]
[388178177,1759032643534,-480.0,0.00035616,9]
[388178179,1759032643544,-719.19,0.00035616,9]
[388178181,1759032643553,-480.0,0.00035616,9]
[388178183,1759032643562,-480.0,0.00035616,9]
[388178185,1759032643572,-480.0,0.00035616,9]
[388178187,1759032643580,-480.0,0.00035616,9]
[388178189,1759032643589,-956.82,0.00035616,9]
[388178191,1759032643598,-1027.69,0.00035616,9]
[388178193,1759032643607,-480.0,0.00035616,9]
[388178195,1759032643616,-480.0,0.00035616,9]
[388178197,1759032643625,-480.0,0.00035616,9]
[388178199,1759032643634,-480.0,0.00035616,9]
[388178201,1759032643644,-480.0,0.00035616,9]
[388178203,1759032643653,-480.0,0.00035616,9]
[388178205,1759032643662,-480.0,0.00035616,9]
[388178207,1759032643671,-480.89915863,0.00035616,9]
[388178209,1759032643679,-480.0,0.00035616,9]
[388178211,1759032643688,-480.0,0.00035616,9]
[388178212,1759032643697,-480.0,0.00035616,9]
[388178214,1759032643706,-480.0,0.00035616,9]
[388178216,1759032643715,-480.0,0.00035616,9]
[388178218,1759032643724,-480.0,0.00035616,9]
[388178220,1759032643734,-1099.87,0.00035616,9]
[388178222,1759032643744,-532.11,0.00035616,9]
[388178224,1759032643753,-1700.93,0.00035616,9]
[388178226,1759032643762,-480.0,0.00035616,7]
[388178228,1759032643771,-480.0,0.00035616,9]
[388178230,1759032643781,-1416.41,0.00035616,9]
[388178232,1759032643791,-481.08275928,0.00035616,9]
[388178234,1759032643802,-1335.65,0.00035616,9]
[388178236,1759032643811,-480.0,0.00035616,9]
[388178238,1759032643820,-480.0,0.00035616,9]
[388178240,1759032643829,-480.0,0.00035616,9]
[388178242,1759032643838,-480.0,0.00035616,9]
[388178244,1759032643847,-734.38,0.00035616,9]
[388178246,1759032643857,-1624.68,0.00035616,9]
[388178248,1759032643866,-488.42902589,0.00035616,9]
[388178250,1759032643875,-480.0,0.00035616,9]
[388178252,1759032643885,-480.83657854,0.00035616,9]
[388178254,1759032643894,-752.47,0.00035616,9]
[388178256,1759032643904,-480.0,0.00035616,9]
[388178259,1759032643914,-480.0,0.00035616,9]
[388178261,1759032643923,-480.0,0.00035616,9]
[388178262,1759032643931,-480.0,0.00035616,9]
[388178264,1759032643940,-480.0,0.00035616,9]
[388178266,1759032643949,-480.94846567,0.00035616,9]
[388178268,1759032643959,-480.0,0.00035616,9]
[388178270,1759032643968,-480.0,0.00035616,9]
[388178272,1759032643977,-695.93,0.00035616,9]
[388178274,1759032643986,-395.20251743,0.00035616,9]
[388178276,1759032643994,-480.0,0.00035616,9]
[388178279,1759032644004,-480.0,0.00035616,9]
[388178280,1759032644013,-746.72,0.00035616,9]
[388178282,1759032644022,-480.0,0.00035616,9]
[388178285,1759032644031,-480.0,0.00035616,9]
[388178286,1759032644040,-674.51,0.00035616,9]
[388178287,1759032644048,-1397.65,0.00035616,9]
[388178288,1759032644057,-480.0,0.00035616,9]
[388178289,1759032644066,-480.25449642,0.00035616,9]
[388178290,1759032644074,-707.53,0.00035616,9]
[388178291,1759032644083,-480.0,0.00035616,9]
[388178292,1759032644092,-768.26,0.00035616,9]
[388178293,1759032644103,-480.0,0.00035616,9]
[388178294,1759032644113,-480.0,0.00035616,9]
[388178295,1759032644121,-480.0,0.00035616,9]
[388178296,1759032644130,-480.0,0.00035616,9]
[388178297,1759032644138,-1023.31,0.00035616,9]
[388178298,1759032644148,-1783.77,0.00035616,9]
[388178299,1759032644156,-480.0,0.00035616,9]
[388178300,1759032644165,-480.0,0.00035616,9]
[388178301,1759032644174,-717.67,0.00035616,9]
[388178302,1759032644183,-519.61,0.00035616,9]
[388178303,1759032644191,-932.89,0.00035616,9]
[388178304,1759032644201,-480.0,0.00035616,9]
[388178305,1759032644210,-480.0,0.00035616,9]
[388178306,1759032644219,-633.61,0.00035616,9]
[388178307,1759032644228,-480.0,0.00035616,9]
[388178308,1759032644238,-480.77342575,0.00035616,9]
[388178309,1759032644247,-480.0,0.00035616,9]
[388178310,1759032644256,-480.0,0.00035616,9]
[388178311,1759032644265,-484.53927041,0.00035616,9]
[388178312,1759032644274,-480.0,0.00035616,9]
[388178313,1759032644284,-480.0,0.00035616,9]
[388178314,1759032644293,-480.0,0.00035616,9]
[388178315,1759032644302,-480.0,0.00035616,9]
[388178316,1759032644312,-1413.1,0.00035616,9]
[388178317,1759032644321,-480.58374072,0.00035616,9]
[388178318,1759032644331,-645.69,0.00035616,9]
[388178320,1759032644341,-480.0,0.00035616,9]
[388178321,1759032644351,-550.91496746,0.00035616,9]
[388178323,1759032644360,-600.0,0.00035616,9]
[388178325,1759032644370,-1080.43,0.00035616,9]
[388178327,1759032644379,-480.0,0.00035616,9]
[388178329,1759032644388,-480.0,0.00035616,9]
[388178331,1759032644397,-531.06060558,0.00035616,9]
[388178333,1759032644406,-480.0,0.00035616,9]
[388178335,1759032644415,-1451.08,0.00035616,9]
[388178337,1759032644424,-909.18,0.00035616,9]
[388178339,1759032644433,-843.73,0.00035616,9]
[388178341,1759032644442,-480.0,0.00035616,9]
[388178343,1759032644452,-1236.66,0.00035616,9]
[388178345,1759032644461,-480.0,0.00035616,9]
[388178347,1759032644470,-480.0,0.00035616,9]
[388178349,1759032644479,-825.64,0.00035616,9]
[388178351,1759032644488,-755.1,0.00035616,9]
[388178353,1759032644497,-480.0,0.00035616,9]
[388178355,1759032644506,-480.0,0.00035616,9]
[388178357,1759032644515,-480.0,0.00035616,9]
[388178359,1759032644525,-520.0,0.00035616,3]
[388178361,1759032644534,-480.0,0.00035616,9]
[388178363,1759032644543,-480.0,0.00035616,9]
[388178365,1759032644553,-638.99,0.00035616,9]
[388178367,1759032644562,-480.0,0.00035616,9]
[388178369,1759032644572,-1110.74,0.00035616,9]
[388178371,1759032644581,-504.46,0.00035616,9]
[388178373,1759032644591,-345.46271853,0.00035616,9]